Cogmind - Beta 12 @@@ ROGUE MODE // 2024.01.06 @ 16:26:20 Player: Inomamais Result: Destroyed by G-73 Enforcer with Phase Gun Performance ------------- Evolutions (5) 2500 Regions Visited (12) 2400 Robots Destroyed (154) 770 Value Destroyed (5195) 5195 Prototype IDs (16) 320 Alien Tech Used (2) 400 Bonus (541) 541 TOTAL SCORE: 12126 Bonus ------- High Alert Combat Kills 41 Entered DSFs 500 Cogmind --------- Core Integrity 0/1000 Matter 210/300 Energy 838/840 System Corruption 21% Temperature Cool (18) Movement Hovering (42) Location -4/Proximity Caves Parts ------- > --- POWER (1) -------- Heavy Antimatter Reactor > --- PROPULSION (4) --- Cooled Gravmag System Cooled Gravmag System Cooled Gravmag System > --- UTILITY (7) ------ Medium Storage Unit Advanced Energy Well Target Analyzer > --- WEAPON (5) ------- (None) > --- INVENTORY (10) --- Light Fission Core Advanced Coolant Injector Small Matter Pod (50) Makeshift Terrain Scan Processor Stasis Canceller Experimental Weapon Shielding Thermal Shield Hardlight Generator Hypervelocity Mass Driver Peak State ------------ > --- POWER ------------ Fission Core > --- PROPULSION ------- Carbon-fiber Leg Flexi-carbon Leg Flexi-carbon Leg Flexi-carbon Leg > --- UTILITY ---------- Improved Heat Sink Large Storage Unit Advanced Terrain Scanner Improved Terrain Scan Processor Improved Targeting Computer Target Analyzer Force Field > --- WEAPON ----------- High-powered Shock Rifle Heavy Laser Gatling Laser Advanced Assault Cannon Heavy Pick > --- INVENTORY -------- Improved Heat Sink Medium Storage Unit Advanced Signal Interpreter Improved Terrain Scanner Improved Terrain Scanner Improved Targeting Computer Recoil Stabilizer Improved Particle Charger System Restoration Module High-powered Shotgun High-powered Shotgun Heavy Machine Gun Mass Driver Heavy Pick [Rating: 72] Favorites ----------- Power Angular Momentum Engine Engine Angular Momentum Engine Power Core Fission Core Reactor Heavy Antimatter Reactor Propulsion Flexi-carbon Leg Treads Spiked Medium Treads Leg Flexi-carbon Leg Wheel Wheel Hover Unit Cooled Gravmag System Utility Improved Terrain Scan Processor Device Advanced Heat Sink Storage Large Storage Unit Processor Improved Terrain Scan Processor Hackware Advanced Hacking Suite Protection Hardened Medium Armor Plating Weapon Heavy Pick Energy Gun Heavy Laser Energy Cannon Beam Cannon Ballistic Gun Light Assault Rifle Ballistic Cannon Mass Driver Launcher Mini Grenade Launcher Impact Weapon Powered Hammer Slashing Weapon Greatsword Piercing Weapon Heavy Pick Build | -11 -10 -9 -9 -8 -7 -7 -6 -5 -5 -5 -5 -4 ------- Run | Jun Mat Mat Min Mat Fac DSF Fac Fac Upp Upp Zhi Pro Slots Evolved 10 | . . 2 . 2 2 . 2 2 . . . . Power . | . . . . . . . . . . . . . Propulsion 2 | . . . . 1 . . 1 . . . . . Utility 5 | . . . . 1 2 . 1 1 . . . . Weapon 3 | . . 2 . . . . . 1 . . . . Parts Attached 210 | 6 20 8 6 40 2 29 52 13 11 9 8 6 Power 18 | 1 5 1 . 1 . 2 4 2 . 1 1 . Engine 12 | 1 5 1 . . . . 2 2 . 1 . . Core 5 | . . . . 1 . 2 2 . . . . . Reactor 1 | . . . . . . . . . . . 1 . Propulsion 52 | 2 6 1 3 5 . 7 15 2 3 4 3 1 Treads 2 | . . . . . . . . . 2 . . . Leg 28 | . 4 . . . . 5 13 1 1 4 . . Wheel 18 | 2 2 1 3 5 . 2 2 1 . . . . Hover 4 | . . . . . . . . . . . 3 1 Flight . | . . . . . . . . . . . . . Utility 66 | 1 7 . . 10 2 8 20 2 6 1 4 5 Device 31 | . 3 . . 6 1 . 13 1 3 . . 4 Storage 9 | 1 4 . . . . . 2 . . . 1 1 Processor 7 | . . . . . . . 4 1 2 . . . Hackware 2 | . . . . . . . . . . . 2 . Protection 17 | . . . . 4 1 8 1 . 1 1 1 . Artifact . | . . . . . . . . . . . . . Weapon 74 | 2 2 6 3 24 . 12 13 7 2 3 . . Energy Gun 19 | 1 1 2 . 7 . 1 4 3 . . . . Energy Cannon 6 | . . 1 . 5 . . . . . . . . Ballistic Gun 10 | 1 . 2 1 2 . . 1 3 . . . . Ballistic Cannon 2 | . . . . . . . 1 1 . . . . Launcher 16 | . 1 1 2 5 . 3 2 . . 2 . . Special Weapon . | . . . . . . . . . . . . . Impact Weapon 7 | . . . . 5 . 1 1 . . . . . Slashing Weapon 7 | . . . . . . 4 1 . 2 . . . Piercing Weapon 7 | . . . . . . 3 3 . . 1 . . Special Melee Weapon . | . . . . . . . . . . . . . Unidentified Prototypes 7 | . . . . 2 . . . . . . 5 . Parts Lost 102 | . 6 3 5 9 . 21 19 17 2 15 . 5 Power 9 | . 3 . . . . 2 1 2 . 1 . . Propulsion 34 | . 2 1 3 4 . 7 7 5 1 4 . . Utility 28 | . 1 . . 1 . 7 6 3 1 4 . 5 Weapon 31 | . . 2 2 4 . 5 5 7 . 6 . . Highest Loss Streak 13 | . 2 1 4 2 . 12 7 9 11 13 . 5 To Critical Strikes 1 | . . . . . . . . 1 . . . . Average Slot Usage (%) 83 | . 97 99 95 99 100 76 84 97 72 45 27 62 Engine 5 | . 14 11 11 3 . . 3 1 5 4 . . Core 1 | . . . . 5 7 4 2 2 . . . . Treads 1 | . . . . . . . . . 7 2 . . Leg 8 | . 3 . . . . 4 23 21 2 9 . . Wheel 9 | . 23 21 21 26 23 14 . . . . . . Device 11 | . 10 11 11 15 23 9 16 16 10 1 . 4 Storage 7 | . 15 11 11 9 7 5 3 5 5 1 1 10 Processor 8 | . . . . . . . 10 16 18 14 11 11 Protection 1 | . . . . 2 7 13 2 . . 2 1 . Energy Gun 7 | . 13 13 11 26 7 2 1 11 1 . . . Energy Cannon 2 | . . 10 11 5 7 1 . . . . . . Ballistic Gun 5 | . 14 20 11 1 15 2 . 7 1 . . . Impact Weapon 1 | . . . . 1 . . 6 . . . . . Slashing Weapon 2 | . . . . . . 12 2 . 7 1 . . Piercing Weapon 3 | . . . . . . 1 7 5 5 2 . . Naked Turns 12 | . . . . . . 12 . . . . . . Heaviest Build 119 | 11 89 101 98 106 106 119 51 61 56 48 22 36 Greatest Support 80 | 26 26 22 22 30 30 40 80 75 56 56 33 33 Greatest Overweight (x) 18 | 1 4 5 4 5 3 11 1 3 18 4 5 1 Average Overweight (x) 1 | . 1 4 4 3 3 2 . . 1 . . . Largest Inventory Capacity 25 | 8 25 25 25 25 25 25 15 15 15 15 5 10 Average Capacity 15 | 6 16 25 25 25 25 21 8 15 15 7 5 9 Most Carried 25 | 6 17 25 25 25 24 25 13 15 15 15 5 10 Average Carried 13 | 2 11 22 24 24 23 19 6 14 13 7 4 6 Final Capacity 25 | 8 25 25 25 25 25 5 15 15 15 5 5 10 Final Carried 25 | 6 17 25 23 25 23 5 13 13 15 5 2 9 Class Distribution -------------------- 35% | Mutant 19% | Scavenger-Gunner 16% | Scavenger-Mutant 10% | Gunner 5% | Gladiator 4% | Scavenger-Tank 4% | Hacker-Mutant Dominant Class ---------------- Mutant | -10/Materials Gunner | -9/Materials Gunner | -9/Mines Scavenger-Gunner | -8/Materials Scavenger-Tank | -7/Factory Mutant | -7/DSF Mutant | -6/Factory Scavenger-Gunner | -5/Factory Scavenger-Mutant | -5/Upper Caves Mutant | -5/Upper Caves Mutant | -5/Zhirov Hacker-Mutant | -4/Proximity Caves Resources | -11 -10 -9 -9 -8 -7 -7 -6 -5 -5 -5 -5 -4 ----------- Run | Jun Mat Mat Min Mat Fac DSF Fac Fac Upp Upp Zhi Pro Matter Collected 2988 | 200 221 286 57 470 . 251 732 261 421 23 . 66 Remotely . | . . . . . . . . . . . . . Salvage Created 6412 | . 392 697 35 1129 . 379 2412 596 189 583 . . Parts 271 | . 26 31 7 57 . 25 79 22 8 16 . . Haulers Intercepted 6 | . . 2 . 2 . . 2 . . . . . Recyclers Shooed . | . . . . . . . . . . . . . Parts Field Recycled . | . . . . . . . . . . . . . Retrieved Matter . | . . . . . . . . . . . . . Parts Self-Destructed 19 | . . . . . . . . . 5 14 . . Prevented 2 | . . . . . . . . . . . . 2 Kills | -11 -10 -9 -9 -8 -7 -7 -6 -5 -5 -5 -5 -4 ------- Run | Jun Mat Mat Min Mat Fac DSF Fac Fac Upp Upp Zhi Pro Combat Hostiles Destroyed 122 | . 13 14 3 28 . 11 32 9 2 10 . . Melee 31 | . . . . . . 3 22 . 1 5 . . Guns 36 | . 9 5 . 11 . . 5 6 . . . . Cannons 18 | . . 7 1 5 . 1 1 2 1 . . . AOE 33 | . 3 2 2 12 . 7 2 . . 5 . . Classes Destroyed 17 | . 3 4 1 3 . 1 2 . 1 2 . . Worker 12 | . 1 2 . 4 . . 3 2 . . . . Builder 3 | . . 1 . . . . . 2 . . . . Tunneler 2 | . . . 1 . . . 1 . . . . . Hauler 6 | . . 2 . 2 . . 2 . . . . . Recycler 6 | . . . . 1 . . 5 . . . . . Minesweeper 1 | . . . . . . . . . 1 . . . Mechanic 1 | . . . . . . . . . . 1 . . Watcher 1 | . . . . 1 . . . . . . . . Swarmer 36 | . 6 3 3 10 . 4 9 . . 1 . . Grunt 44 | . 7 6 . 11 . 3 9 2 . 6 . . Brawler 5 | . . 1 . . . . 1 . . 3 . . Duelist 2 | . . . . . . . 2 . . . . . Sentry 18 | . . 4 . 6 . . 5 3 . . . . Specialist 3 | . . . . . . 3 . . . . . . Hunter 9 | . . . . 1 . 1 2 3 2 . . . Programmer 5 | . . . . . . . 4 1 . . . . Samaritan 1 | . . . . . . . . . . 1 . . Best Kill Streak 6 | . 6 4 3 5 . 4 6 2 1 6 . . Combat Bots Only 6 | . 6 3 3 5 . 4 6 2 1 6 . . Max Kills in Single Turn 4 | . 1 2 2 4 . 3 2 1 1 2 . . Gunslinging . | . . . . . . . . . . . . . Exploded 4 | . 1 2 2 4 . 3 2 . . 2 . . Melee 1 | . . . . . . 1 1 . 1 1 . . Uniques/NPCs Destroyed . | . . . . . . . . . . . . . Combat | -11 -10 -9 -9 -8 -7 -7 -6 -5 -5 -5 -5 -4 -------- Run | Jun Mat Mat Min Mat Fac DSF Fac Fac Upp Upp Zhi Pro Damage Taken 13327 | . 674 580 691 1066 . 2484 2879 2045 501 1846 . 561 Core 2218 | . 165 153 180 116 . 280 328 266 84 510 . 136 Absorbed by Shields 232 | . . . . . . . 67 149 . . . 16 Regen/Repaired (Parts) 116 | . 28 . . . . . 88 . . . . . Core Remaining (%) 58 | 100 34 . 16 78 . 60 61 . . . . . Volleys Fired 200 | . 42 35 4 49 . 14 16 26 6 8 . . Largest 4 | . 2 4 4 4 . 2 3 4 3 1 . . Hottest 258 | . 70 160 140 258 . 124 188 257 156 43 . . Shots Fired 563 | . 83 137 13 166 . 19 40 81 16 8 . . Gun 442 | . 80 104 9 139 . 2 29 69 10 . . . Cannon 83 | . . 32 3 19 . 2 9 12 6 . . . Launcher 38 | . 3 1 1 8 . 15 2 . . 8 . . Special . | . . . . . . . . . . . . . Kinetic 203 | . 41 62 6 7 . . 19 56 12 . . . Thermal 314 | . 39 74 6 151 . 4 12 24 4 . . . Explosive 38 | . 3 1 1 8 . 15 2 . . 8 . . Electromagnetic 8 | . . . . . . . 7 1 . . . . Robot Hit Streak 25 | . 18 12 5 25 . 10 6 12 3 11 . . Robot Miss Streak 7 | . 3 6 3 2 . 2 7 5 2 . . . Penetration Max . | . . . . . . . . . . . . . Secondary Targets 2 | . 1 . . 1 . . . . . . . . Max Gunslinging Chain 1 | . 1 . . 1 . . . . . . . . Shots Hit Robots 512 | . 63 85 4 110 . 31 111 67 15 26 . . Core Hits 276 | . 24 30 4 66 . 22 50 25 4 51 . . Critical Kills 1 | . . 1 . . . . . . . . . . Critical Parts Destroyed 5 | . . . . . . . 4 1 . . . . Critical Strikes 28 | . 3 1 . 4 . 1 10 2 1 6 . . Burn 8 | . 3 . . 4 . . . . 1 . . . Destroy 2 | . . 1 . . . . . 1 . . . . Smash 4 | . . . . . . . 4 . . . . . Sever 9 | . . . . . . 1 4 . . 4 . . Impale 5 | . . . . . . . 2 1 . 2 . . Melee Attacks 299 | . . . . 24 . 20 164 47 16 28 . . Impact 76 | . . . . 24 . . 52 . . . . . Slashing 98 | . . . . . . 18 46 . 14 20 . . Piercing 125 | . . . . . . 2 66 47 2 8 . . Sneak Attacks 26 | . . . . . . . 17 4 3 2 . . Combat Hostiles 2 | . . . . . . . 2 . . . . . Follow-up Attacks 34 | . . . . . . 5 22 . 1 6 . . Damage Inflicted 16008 | . 886 1264 196 2409 . 1535 4702 1806 646 2564 . . Guns 4262 | . 621 703 10 1446 . 17 352 1010 103 . . . Cannons 1209 | . . 421 36 216 . 21 85 347 83 . . . Explosions 3718 | . 265 140 150 747 . 1026 190 . . 1200 . . Melee 6317 | . . . . . . 471 4075 449 460 862 . . Ramming 502 | . . . . . . . . . . 502 . . Kinetic 1894 | . 212 376 . 41 . . 183 934 148 . . . Thermal 3465 | . 409 748 46 1621 . 38 160 405 38 . . . Explosive 3718 | . 265 140 150 747 . 1026 190 . . 1200 . . Electromagnetic 112 | . . . . . . . 94 18 . . . . Impact 831 | . . . . . . . 831 . . . . . Slashing 3489 | . . . . . . 442 1907 . 412 728 . . Piercing 1997 | . . . . . . 29 1337 449 48 134 . . Highest Corruption 21 | . . . . . . 8 10 5 5 21 21 21 Average Corruption 10 | . . . . . . 8 9 1 5 16 21 21 Corruption Purged . | . . . . . . . . . . . . . Corruption Blocked . | . . . . . . . . . . . . . Effects 154 | . . . . . . 1 33 1 54 34 5 26 Message Errors 34 | . . . . . . . 3 1 12 10 . 8 Matter Fused 36 | . . . . . . . 12 . 18 4 1 1 Heat Flow Errors 26 | . . . . . . . 10 . 6 3 . 7 Energy Discharges 21 | . . . . . . . 4 . 4 7 3 3 Parts Rejected 3 | . . . . . . . 1 . . 1 . 1 Parts Fused 3 | . . . . . . . 1 . . 2 . . Data Loss (minor) 17 | . . . . . . . 1 . 9 4 1 2 Data Loss (major) 5 | . . . . . . 1 . . 2 . . 2 Misfires 2 | . . . . . . . . . 2 . . . Alerts 4 | . . . . . . . 1 . 1 2 . . Misdirections 3 | . . . . . . . . . . 1 . 2 Overload Shots . | . . . . . . . . . . . . . Overflow Damage 1134 | . 7 . . 12 . 6 717 72 146 174 . . Projectiles 10 | . . . . 10 . . . . . . . . Explosions 162 | . 7 . . 2 . 6 60 . . 87 . . Melee 962 | . . . . . . . 657 72 146 87 . . Knockbacks 8 | . . . . . . . 4 1 1 2 . . Impact 4 | . . . . . . . 2 . . 2 . . Kinetic 4 | . . . . . . . 2 1 1 . . . Secondary . | . . . . . . . . . . . . . Self-Inflicted Damage 825 | . . . 25 69 . 302 34 . . 395 . . Shots 24 | . . . 1 3 . 11 1 . . 8 . . Rammed . | . . . . . . . . . . . . . Targets Rammed 248 | . . . . . . . . . . 248 . . Kicked 248 | . . . . . . . . . . 248 . . Crushed . | . . . . . . . . . . . . . Highest Temperature 422 | . 201 198 73 394 . 422 282 256 159 270 . 246 Average Temperature 102 | . 46 79 36 151 . 181 102 72 52 118 . 84 Received Heat Transfer 2561 | . 285 195 . 450 . 171 615 304 . 465 . 76 Effects 6 | . . . . 6 . . . . . . . . Energy Bleed 2 | . . . . 2 . . . . . . . . Interference 3 | . . . . 3 . . . . . . . . Short Circuit 1 | . . . . 1 . . . . . . . . Siege Activations . | . . . . . . . . . . . . . Robots Corrupted . | . . . . . . . . . . . . . Combat Hostiles . | . . . . . . . . . . . . . Parts Fried 17 | . . . . . . . 14 2 . 1 . . Impact Corruptions 17 | . . . . . . . 13 . . 4 . . Robots Melted 2 | . 1 . . . . . . 1 . . . . Combat Hostiles 2 | . 1 . . . . . . 1 . . . . Parts Melted 21 | . 3 7 . 11 . . . . . . . . Heat Transferred 8469 | . 1443 1625 99 4013 . 74 350 717 148 . . . Parts Sabotaged . | . . . . . . . . . . . . . Parts Stolen . | . . . . . . . . . . . . . Parts Stripped . | . . . . . . . . . . . . . Power Chain Reactions . | . . . . . . . . . . . . . Missiles Intercepted . | . . . . . . . . . . . . . Alert | -11 -10 -9 -9 -8 -7 -7 -6 -5 -5 -5 -5 -4 ------- Run | Jun Mat Mat Min Mat Fac DSF Fac Fac Upp Upp Zhi Pro Peak Influence 496 | . 255 221 116 496 225 374 420 290 . . . . Initial 225 | . . 107 35 11 225 157 191 205 . . . . Average 160 | . 104 78 97 215 225 284 170 186 . . . . Maximum Alert Level 2 | . 1 1 . 2 1 1 2 1 . . . . Low Security (%) 67 | 100 69 98 100 51 . 23 70 54 . . . . Level 1 28 | . 30 1 . 36 100 76 20 45 . . . . Level 2 4 | . . . . 11 . . 9 . . . . . Level 3 . | . . . . . . . . . . . . . Level 4 . | . . . . . . . . . . . . . Level 5 . | . . . . . . . . . . . . . High Security . | . . . . . . . . . . . . . Max Security . | . . . . . . . . . . . . . Sterilizations 1 | . . . . . . 1 . . . . . . Squads Dispatched 18 | . 2 . . 4 . 2 8 1 . 1 . . Investigation 1 | . . . . . . . 1 . . . . . Extermination 5 | . . . . . . . 4 1 . . . . Reinforcement 7 | . 2 . . 3 . 2 . . . . . . Assault 1 | . . . . . . . . . . 1 . . Garrison 4 | . . . . 1 . . 3 . . . . . Intercept . | . . . . . . . . . . . . . Searches Triggered . | . . . . . . . . . . . . . Construction Impeded 1 | . . . . 1 . . . . . . . . Haulers Reinforced . | . . . . . . . . . . . . . Active Scanning Responses . | . . . . . . . . . . . . . Cargo Convoy Interrupts . | . . . . . . . . . . . . . Stealth | -11 -10 -9 -9 -8 -7 -7 -6 -5 -5 -5 -5 -4 --------- Run | Jun Mat Mat Min Mat Fac DSF Fac Fac Upp Upp Zhi Pro Distress Signals 10 | . 2 2 . 4 . . 1 1 . . . . Communications Jammed . | . . . . . . . . . . . . . Distress Signals . | . . . . . . . . . . . . . Times Spotted 247 | . 29 20 10 43 . 19 34 22 2 51 . 17 Peak Tracking Total 13 | . 8 4 6 7 . 6 6 7 1 10 . 13 Tactical Retreats 29 | . 4 1 1 3 . 8 2 2 . 5 . 3 Traps | -11 -10 -9 -9 -8 -7 -7 -6 -5 -5 -5 -5 -4 ------- Run | Jun Mat Mat Min Mat Fac DSF Fac Fac Upp Upp Zhi Pro Traps Triggered 2 | . . . . 1 . . 1 . . . . . Indirectly . | . . . . . . . . . . . . . Trap Hack Attempts . | . . . . . . . . . . . . . Triggered . | . . . . . . . . . . . . . Disarmed 6 | . 6 . . . . . . . . . . . Reprogrammed 4 | . . . . 4 . . . . . . . . Reused 4 | . . . . 4 . . . . . . . . Traps Extracted . | . . . . . . . . . . . . . Installed 1 | . . . . . . 1 . . . . . . Triggered 6 | . . . . 4 . . . . . . . 2 Most Traps Carried 2 | . . . 2 2 1 1 . . 2 2 . . Machines | -11 -10 -9 -9 -8 -7 -7 -6 -5 -5 -5 -5 -4 ---------- Run | Jun Mat Mat Min Mat Fac DSF Fac Fac Upp Upp Zhi Pro Machines Disabled 5 | . . . . 3 . 1 1 . . . . . Max in Single Turn 1 | . . . . 1 . 1 1 . . . . . Garrison Access 1 | . . . . 1 . . . . . . . . Machines Repaired . | . . . . . . . . . . . . . Machines Sabotaged . | . . . . . . . . . . . . . Overloaded Fab Kills . | . . . . . . . . . . . . . Hacking | -11 -10 -9 -9 -8 -7 -7 -6 -5 -5 -5 -5 -4 --------- Run | Jun Mat Mat Min Mat Fac DSF Fac Fac Upp Upp Zhi Pro Machines Accessed 32 | . 6 2 . 5 1 . 7 1 1 . 9 . Terminals 17 | . 5 1 . 4 1 . 5 1 . . . . Fabricators 1 | . . . . . . . 1 . . . . . Repair Stations 3 | . 1 1 . . . . 1 . . . . . Recycling Units . | . . . . . . . . . . . . . Scanalyzers . | . . . . . . . . . . . . . Garrison Access 1 | . . . . 1 . . . . . . . . Total Hacks 101 | . 18 5 . 12 1 . 13 3 1 . 48 . Successful 71 | . 6 3 . 4 1 . 7 1 1 . 48 . Failed 30 | . 12 2 . 8 . . 6 2 . . . . Catastrophic 6 | . 1 . . 2 . . 2 1 . . . . Database Lockouts . | . . . . . . . . . . . . . Manual 15 | . . 2 . 10 . . 3 . . . . . Terminals 41 | . 15 3 . 11 1 . 8 3 . . . . Fabricators 1 | . . . . . . . 1 . . . . . Repair Stations 9 | . 3 2 . . . . 4 . . . . . Recycling Units . | . . . . . . . . . . . . . Scanalyzers . | . . . . . . . . . . . . . Garrison Access 1 | . . . . 1 . . . . . . . . Terminal Hacks 63 | . 4 2 . 2 1 . 4 1 1 . 48 . Record 40 | . . 1 . . . . 2 1 . . 36 . Part Schematic 4 | . . . . . . . . . . . 4 . Robot Analysis 4 | . . . . . . . . . . . 4 . Prototype ID Bank 4 | . . . . . . . . . . . 4 . Open Door 2 | . . . . . . . 1 . 1 . . . Open DSF 1 | . . . . . 1 . . . . . . . Unreport Threat 4 | . 2 1 . 1 . . . . . . . . Locate Traps 2 | . 1 . . . . . 1 . . . . . Disarm Traps 1 | . 1 . . . . . . . . . . . Reprogram Traps 1 | . . . . 1 . . . . . . . . Fabricator Hacks 1 | . . . . . . . 1 . . . . . Network Status 1 | . . . . . . . 1 . . . . . Repair Station Hacks 5 | . 2 1 . . . . 2 . . . . . Scan Component 3 | . 1 1 . . . . 1 . . . . . Repair 2 | . 1 . . . . . 1 . . . . . Recycling Unit Hacks . | . . . . . . . . . . . . . Scanalyzer . | . . . . . . . . . . . . . Garrison Access Hacks 1 | . . . . 1 . . . . . . . . Seal Access 1 | . . . . 1 . . . . . . . . Unauthorized Hacks 1 | . . . . 1 . . . . . . . . Terminals 1 | . . . . 1 . . . . . . . . Assimilate 1 | . . . . 1 . . . . . . . . Fabricators . | . . . . . . . . . . . . . Repair Stations . | . . . . . . . . . . . . . Recycling Units . | . . . . . . . . . . . . . Scanalyzers . | . . . . . . . . . . . . . Garrison Access . | . . . . . . . . . . . . . Data Cores Recovered . | . . . . . . . . . . . . . Used . | . . . . . . . . . . . . . Hacking Detections 18 | . 6 2 . 4 1 . 4 1 . . . . Full Trace Events 1 | . 1 . . . . . . . . . . . Feedback Events . | . . . . . . . . . . . . . Feedback Blocked . | . . . . . . . . . . . . . Robot Schematics Acquired . | . . . . . . . . . . . . . Robots Built . | . . . . . . . . . . . . . Authchips . | . . . . . . . . . . . . . Time . | . . . . . . . . . . . . . Total Robot Build Rating . | . . . . . . . . . . . . . Part Schematics Acquired 4 | . . . . . . . . . . . 4 . Parts Built . | . . . . . . . . . . . . . Authchips . | . . . . . . . . . . . . . Time . | . . . . . . . . . . . . . Total Part Build Rating . | . . . . . . . . . . . . . Parts Repaired 2 | . 1 . . . . . 1 . . . . . Time 76 | . 26 . . . . . 50 . . . . . Parts Recycled . | . . . . . . . . . . . . . Recycled Matter . | . . . . . . . . . . . . . Retrieved Matter . | . . . . . . . . . . . . . Retrieved Components . | . . . . . . . . . . . . . Parts Scanalyzed . | . . . . . . . . . . . . . Part Schematics Acquired . | . . . . . . . . . . . . . Parts Damaged . | . . . . . . . . . . . . . Bothacking | -11 -10 -9 -9 -8 -7 -7 -6 -5 -5 -5 -5 -4 ------------ Run | Jun Mat Mat Min Mat Fac DSF Fac Fac Upp Upp Zhi Pro Used RIF Installer . | . . . . . . . . . . . . . Robots Hacked . | . . . . . . . . . . . . . Non-combat . | . . . . . . . . . . . . . Combat . | . . . . . . . . . . . . . Robot Hacks Applied . | . . . . . . . . . . . . . Relay Couplers Released . | . . . . . . . . . . . . . Fabnet Peak Effective % . | . . . . . . . . . . . . . Robots Rewired . | . . . . . . . . . . . . . Allies Hacked . | . . . . . . . . . . . . . Hacks Repelled . | . . . . . . . . . . . . . Allies | -11 -10 -9 -9 -8 -7 -7 -6 -5 -5 -5 -5 -4 -------- Run | Jun Mat Mat Min Mat Fac DSF Fac Fac Upp Upp Zhi Pro Total Allies . | . . . . . . . . . . . . . Largest Group . | . . . . . . . . . . . . . Highest-Rated Group . | . . . . . . . . . . . . . Highest-Rated Ally . | . . . . . . . . . . . . . Total Orders 7 | . . . . . . . 7 . . . . . EXPLORE 6 | . . . . . . . 6 . . . . . RETURN 1 | . . . . . . . 1 . . . . . Ally Attacks . | . . . . . . . . . . . . . Total Damage . | . . . . . . . . . . . . . Kills . | . . . . . . . . . . . . . Allies Corrupted . | . . . . . . . . . . . . . Allies Melted . | . . . . . . . . . . . . . Intel | -11 -10 -9 -9 -8 -7 -7 -6 -5 -5 -5 -5 -4 ------- Run | Jun Mat Mat Min Mat Fac DSF Fac Fac Upp Upp Zhi Pro Robot Analysis Total 4 | . . . . . . . . . . . 4 . Derelict Logs Recovered 2 | . . . 1 . . . . . . . . 1 Drone Launches 8 | . . . . . . . 8 . . . . . Drone Recoveries 4 | . . . . . . . 4 . . . . . Exploration | -11 -10 -9 -9 -8 -7 -7 -6 -5 -5 -5 -5 -4 ------------- Run | Jun Mat Mat Min Mat Fac DSF Fac Fac Upp Upp Zhi Pro Turns Passed 11856 | 68 1197 1020 486 1401 50 497 2305 935 2268 933 126 570 Spaces Moved 6713 | 62 734 496 300 745 39 243 1160 425 909 486 232 882 Core 419 | 12 . . . . . 24 . . 74 180 129 . Treads 940 | . . . . . . . . . 834 106 . . Legs 1836 | . 39 . . . . 61 1110 425 1 200 . . Wheels 2533 | 50 695 496 300 745 39 158 50 . . . . . Hover 985 | . . . . . . . . . . . 103 882 Flight . | . . . . . . . . . . . . . Fastest Speed 42 | 50 90 140 140 125 125 50 100 120 160 50 42 42 Average Speed 126 | 85 116 141 143 125 125 124 119 130 224 105 47 62 Slowest Speed 950 | 100 260 155 145 155 125 470 120 330 950 250 300 92 Overloaded Moves . | . . . . . . . . . . . . . Propulsion Burnouts . | . . . . . . . . . . . . . Robots Hopped . | . . . . . . . . . . . . . Cave-ins Triggered 2 | . . . . . . 1 . . . 1 . . Teleports 1 | . . . . . . . . . . . 1 . Exploration Rate (%) 51 | 3 83 46 54 57 1 96 34 11 74 59 62 85 Regions Visited 12 Branch Regions 5 Pre-discovered Areas 4 | . . . . . . . . . 1 . 3 . Known Exits Taken 2 | . . . . . 1 . . . 1 . . . Unknown Exits Taken 9 | 1 1 1 1 1 . . 1 1 . 1 1 . Scrap Searched 6 | . . . . . . . . . 2 . . 4 Spaces Dug 72 | . . . . 9 . . 32 26 5 . . . Terrain Destroyed 280 | . 11 7 16 47 . 48 44 33 9 65 . . Melee 72 | . . . . 9 . . 32 26 5 . . . Projectile 12 | . . . . . . . 1 7 4 . . . AOE 196 | . 11 7 16 38 . 48 11 . . 65 . . Terrain Rammed . | . . . . . . . . . . . . . Walls Destroyed . | . . . . . . . . . . . . . Machines Disabled . | . . . . . . . . . . . . . Actions | -11 -10 -9 -9 -8 -7 -7 -6 -5 -5 -5 -5 -4 --------- Run | Jun Mat Mat Min Mat Fac DSF Fac Fac Upp Upp Zhi Pro Total 9201 | 73 1003 735 347 1061 40 395 1853 655 1100 801 243 895 Wait 1332 | . 180 165 29 157 . 60 450 128 140 23 . . Move 6701 | 61 733 495 299 744 38 242 1159 424 908 485 231 882 Hop . | . . . . . . . . . . . . . Pick Up 165 | 6 19 22 5 28 . 13 41 13 11 1 . 6 Fast Attach 57 | 6 4 . . . . 11 11 3 6 4 9 3 Attach 89 | . 6 5 3 13 2 12 29 9 3 5 1 1 Detach 18 | . . . . . . 8 2 . 3 4 . 1 Swap 66 | . 10 3 3 27 . 6 12 1 2 . . 2 Drop 90 | . 9 10 4 19 . 14 18 4 9 1 2 . Fire 200 | . 42 35 4 49 . 14 16 26 6 8 . . Melee 231 | . . . . 24 . 14 115 47 12 19 . . Ram . | . . . . . . . . . . . . . Kick 248 | . . . . . . . . . . 248 . . Crush . | . . . . . . . . . . . . . Escape Stasis . | . . . . . . . . . . . . . Rewire 3 | . . . . . . . . . . 3 . . Trap 1 | . . . . . . 1 . . . . . . Miscellaneous . | . . . . . . . . . . . . . Route ------- -11/Junkyard -10/Materials (discovered 2 exits: *Mat x2) -9/Materials (discovered 3 exits: *Mat / [*Min x2]) -9/Mines -8/Materials (discovered 2 exits: *Fac x2) -7/Factory -7/DSF -6/Factory (discovered 3 exits: *Fac x2 / [*Ext]) -5/Factory -5/Upper Caves -5/Upper Caves -5/Zhirov -4/Proximity Caves History --------- Turn | Location | Event 40 | -11/Junkyard | Discovered new exit (range 16) 69 | -11/Junkyard | Entered Materials 310 | -10/Materials | Build established: Mutant 435 | -10/Materials | Discovered new exit (range 3) 863 | -10/Materials | Core integrity fell below 50% 1064 | -10/Materials | Repaired Heat Sink? 1164 | -10/Materials | Discovered new exit (range 12) 1266 | -10/Materials | Entered another Materials area 1266 | -9/Materials | Evolved 2 slots: Weapon x2 1268 | -9/Materials | Discovered new exit (range 8) 1569 | -9/Materials | Build established: Gunner 1748 | -9/Materials | Discovered new exit (range 16) 2106 | -9/Materials | Discovered new exit (range 12) 2286 | -9/Materials | Entered Mines 2360 | -9/Mines | Discovered new exit (range 5) 2363 | -9/Mines | Learned 2 Materials zone layouts 2440 | -9/Mines | YI-UF0 nonchalantly dropped a Grenade Launcher on the ground 2555 | -9/Mines | Found a hidden stash of uninstalled traps 2666 | -9/Mines | Assembled infested the area 2677 | -9/Mines | Core integrity fell below 50% 2685 | -9/Mines | Core integrity fell below 20% 2715 | -9/Mines | Lost 4 parts (2n2w) 2772 | -9/Mines | Entered Materials 2772 | -8/Materials | Evolved 2 slots: Propulsion x1, Utility x1 3183 | -8/Materials | Garrison activated, responded to threat 3510 | -8/Materials | Build established: Scavenger-Gunner 3615 | -8/Materials | Discovered new exit (range 10) 4082 | -8/Materials | Discovered new exit (range 8) 4173 | -8/Materials | Entered Factory 4173 | -7/Factory | Evolved 2 slots: Utility x2 4222 | -7/Factory | Identified exit to DSF 4223 | -7/Factory | Entered DSF 4263 | -7/DSF | Additional patrols routed to DSF 4316 | -7/DSF | Discovered new exit (range 15) 4545 | -7/DSF | Lost 5 parts (1p1n2u1w) 4610 | -7/DSF | Sterilization system engaged 4618 | -7/DSF | Crushed by falling debris 4630 | -7/DSF | Ambient heat levels rising (+10) 4645 | -7/DSF | Ambient heat levels rising (+10) 4656 | -7/DSF | Lost 12 parts (1p4n5u2w) 4660 | -7/DSF | Ambient heat levels rising (+10) 4667 | -7/DSF | Build established: Mutant 4675 | -7/DSF | Ambient heat levels rising (+10) 4690 | -7/DSF | Ambient heat levels rising (+10) 4705 | -7/DSF | Ambient heat levels rising (+10) 4720 | -7/DSF | Ambient heat levels rising (+10) 4720 | -7/DSF | Entered Factory 4720 | -6/Factory | Evolved 2 slots: Propulsion x1, Utility x1 5199 | -6/Factory | Discovered new exit (range 6) 5222 | -6/Factory | Discovered new exit (range 11) 5957 | -6/Factory | Build established: Gladiator 6149 | -6/Factory | System corruption reached 10% 6343 | -6/Factory | Garrison activated, responded to threat 6415 | -6/Factory | Discovered new exit (range 32) 6570 | -6/Factory | Lost 5 parts (1p3n1u) 6822 | -6/Factory | Lost 7 parts (4n3w) 6954 | -6/Factory | Repaired Flexi-carbon Leg 7025 | -6/Factory | Entered another Factory area 7025 | -5/Factory | Evolved 2 slots: Utility x1, Weapon x1 7328 | -5/Factory | Build established: Scavenger-Gunner 7366 | -5/Factory | Lost 3 parts (3w) 7891 | -5/Factory | Discovered new exit (range 12) 7960 | -5/Factory | Entered Upper Caves 8006 | -5/Upper Caves | Lost 11 parts (1p4n4u2w) 8041 | -5/Upper Caves | Met a Warlord Commander 8042 | -5/Upper Caves | Learned location of Warlord (-4) 8078 | -5/Upper Caves | Found Encrypted Comm Array 9389 | -5/Upper Caves | Build established: Scavenger-Mutant 10150 | -5/Upper Caves | Discovered new exit (range 11) 10227 | -5/Upper Caves | Identified exit to Upper Caves 10228 | -5/Upper Caves | Entered another Upper Caves area 10452 | -5/Upper Caves | Attracted the attention of an 0b10 outpost 10473 | -5/Upper Caves | System corruption reached 10% 10483 | -5/Upper Caves | Core integrity fell below 50% 10488 | -5/Upper Caves | Crushed by falling debris 10519 | -5/Upper Caves | Lost 13 parts (1p4n3u5w) 10585 | -5/Upper Caves | Build established: Mutant 11109 | -5/Upper Caves | Attracted the attention of an 0b10 checkpoint 11112 | -5/Upper Caves | Spotted B-75 Beast 11114 | -5/Upper Caves | Core integrity fell below 20% 11158 | -5/Upper Caves | Discovered new exit (range 8) 11161 | -5/Upper Caves | Entered Zhirov 11161 | -5/Zhirov | Discovered new exit (range 3) 11180 | -5/Zhirov | Learned location of Quarantine (-3) 11180 | -5/Zhirov | Learned location of Testing (-2) 11180 | -5/Zhirov | Learned location of Command (-1) 11206 | -5/Zhirov | Found Alien Artifact 11206 | -5/Zhirov | Identified Transdimensional Reconstructor 11206 | -5/Zhirov | Warped through subspace 11220 | -5/Zhirov | Found Alien Artifact 11220 | -5/Zhirov | Identified Integrated Reactor 11220 | -5/Zhirov | Installed Integrated Reactor, increased core energy generation (+10) 11287 | -5/Zhirov | Entered Proximity Caves 11304 | -4/Proximity Caves | Spotted B-86 Titan 11319 | -4/Proximity Caves | Learned location of 1 exit from Research 11519 | -4/Proximity Caves | Attracted the attention of an 0b10 checkpoint 11580 | -4/Proximity Caves | Build established: Hacker-Mutant 11857 | -4/Proximity Caves | Destroyed by G-73 Enforcer with Phase Gun Last Messages --------------- 11750_ System corrupted: Heat flow error (+159). 11772_ System corrupted: Matter fused (-6). 11798_ System corrupted: Heat flow error (+110). 11820_ Searching scrap... 11820_ Found Matter Filter. 11820_ Found Antigrav System. 11820_ Found 38 Matter. 11826_ Penetrated by Slug. 11826_ Imp. Reaction Control System destroyed. 11826_ Penetrated by Slug. 11826_ Slug penetrates Wall. 11826_ Hacking Suite destroyed. 11834_ System corrupted: Component data lost. 11849_ Adv. Hacking Suite destroyed. 11850_ Reaction Control System destroyed. 11851_ System corrupted: Cld. Gravmag System rejected. 11851_ Acquired Cld. Gravmag System. 11854_ 0b10 Decoder Chip [Scout] destroyed. [Achievement: Just Browsing] [Achievement: Achiever] Map ----- +----------------------------------------------------+ | ?????????????????????????????????????????????????? | | ?????????????????????????????????????????????????? | | ?????????????????????????????????????????????????? | | ?????????????????????????????????????????????????? | | ?????????????????????????????????????????????????? | | ?????????????????????????????????????????????????? | | ?????????????????????????????????????????????????? | | ?????????????????????????????????????????????????? | | ?????????????????????????????????????????????????? | | ?????????????????????????????????????????????????? | | ?????????????????????????????????????????????????? | | ?????????????????????????????????????????????????? | | ?????????????????????????????????????????????????? | | ??????? ???????????????????????????????????????? | | ?????? #??????????????????????????????????????? | | #????? ??#????????????????????????????????????? | | ##???? #????????????????????????????????????? | | ###?? ##???????????????????????????????????? | | ### ???????????????????????????????????? | | #???????????????###????????????????????? | | ### #????????????????# ##???????????????????? | | ##?# #??????? ????????# #???????????????????? | | #??# #?????? ##????## ##??????????????????? | | #### #????? #?##?# ##?????????????????? | | # #???? ### ## #?????????????????? | | ## #????# ## @ #####??????????????? | | # # #????# ## #### ##?????????????? | | # = ##???# ## s### #?????????????? | | &%= ###?# gg ss #?????????????? | | %% #?## g #?????????????? | | ## #??# ## s #?????????????? | | # # #### g####s #?????????????? | | # ### #??## ##?????????????? | | ### ### ##?## ##??????????????? | | #?### ### ####????????????? | | ##??# #????????????? | | #??#### #??????? | | #????# ## ??????? | | ###????## ##?# #### ??????? | | ????????###### #???# ##???? #??????? | | ?????????????###### #????##?????? ##??????? | | ??????????????????###### #?????????????????????? | | ???????????????????????#####?????????????????????? | | ?????????????????????????????????????????????????? | | ?????????????????????????????????????????????????? | | ?????????????????????????????????????????????????? | | ?????????????????????????????????????????????????? | | ?????????????????????????????????????????????????? | | ?????????????????????????????????????????????????? | | ?????????????????????????????????????????????????? | +----------------------------------------------------+ Best States ------------- Heat Dissipation 81 Energy Generation 35 Energy Capacity 840 Matter Stores 300 Matter Capacity 300 Sight Range 16 Robot Scan Range 15 Terrain Scan Range 20 Terrain Scan Density 110 Armor Coverage 675 Resistance: TH 10 Resistance: EM 15 Weapon Shielding 90 Melee Speed Boost 40 Evasion (%) 66 Targeting Accuracy 6 Melee Accuracy 8 Target Analysis 5 Recoil Reduction 2 Offensive Hacking 24 Item Schematics ----------------- Assault Drone Bay | -5/Zhirov | Free Exp. Heat Sink | -5/Zhirov | Free Exp. Optical Array | -5/Zhirov | Free Imp. Arc Thrower | -5/Zhirov | Free Robot Schematics ------------------ None Fabricated ------------ Nothing Alien Tech Used ----------------- Transdimensional Reconstructor Integrated Reactor Achievements -------------- Achiever I Survived The Infestation Just Browsing True Hacker Challenges ------------ None Game ------ Seed SchematicCompactShield Manual? 0 Play Time 03:02:00 Cumulative 40.9 hours Start 2024.01.06 @ 11:40:51 End 2024.01.06 @ 16:26:20 Sessions 1 Manual Loads 0 Difficulty Rogue Special Mode None Game No. 23 Rogue 22 Adventurer 1 Explorer 0 Win Type - Total 0 Types 0/0/0/0/0/0/0/0/0 Lore% 34 Gallery% 26 Achievement% 26 Wizard Run 0 Options --------- ASCII 1 Keyboard 1 Movement Numpad Keybinds 0 Fullscreen 1 Font 16/Smallcaps Map View 76x50 Tactical HUD 1 Map Filters NONE Filters NONE Steam 1 RUN: 3dd92296-0e6d-4ba1-a02b-9199e81e5a8a